lending/lending_fUSD_20260110
["ID","MTS","AMOUNT","RATE_DAILY","PERIOD"]
[401190938,1768032648589,-1000.0,0.000178,2]
[401190939,1768032648600,-263.75602621,0.000178,2]
[401190940,1768032648610,-178.71892515,0.000178,2]
[401190941,1768032648621,-150.0,0.000178,2]
[401190942,1768032648631,-150.0,0.000178,2]
[401190943,1768032648642,-229.31905987,0.000178,2]
[401190944,1768032648653,-505.594,0.00017805,2]
[401190945,1768032648664,-915.241,0.00017805,2]
[401190946,1768032648675,-1202.614,0.00017805,2]
[401190947,1768032648685,-4820.0,0.00017805,2]
[401190948,1768032648695,-2437.001,0.00017805,2]
[401190949,1768032648705,-6554.0,0.00017805,2]
[401190950,1768032648716,-207.26988174,0.00017808,2]
[401190951,1768032648726,-255.68743637,0.00017818,2]
[401190952,1768032648737,-263.75602621,0.00017818,2]
[401190953,1768032648749,-178.71892515,0.00017818,2]
[401190954,1768032648759,-229.31905987,0.00017818,2]
[401190955,1768032648770,-10000.0,0.0001782,2]
[401190956,1768032648780,-10000.0,0.0001782,2]
[401190957,1768032648791,-10000.0,0.0001782,2]
[401190958,1768032648801,-10000.0,0.0001782,2]
[401190959,1768032648811,-159.35537069,0.0001782,2]
[401190960,1768032648823,-150.0,0.00017827,2]
[401190961,1768032648833,-500.0,0.00017829,2]
[401190962,1768032648843,-24666.13896743,0.0001783,2]
[401190963,1768032648854,-28154.0318888,0.0001783,2]
[401190964,1768032648864,-255.68743637,0.00017836,2]
[401190965,1768032648875,-263.75602621,0.00017836,2]
[401190966,1768032648885,-178.71892515,0.00017836,2]
[401190967,1768032648895,-150.0,0.00017836,2]
[401190968,1768032648906,-229.31905987,0.00017836,2]
[401190969,1768032648916,-561.2,0.00017851,2]
[401190970,1768032648926,-255.68743637,0.00017855,2]
[401190971,1768032648937,-263.75602621,0.00017855,2]
[401190972,1768032648947,-178.71892515,0.00017855,2]
[401190973,1768032648958,-229.31905987,0.00017855,2]
[401190974,1768032648968,-200.0,0.00017855,2]
[401190975,1768032648978,-2000.0,0.00017856,2]
[401190976,1768032648989,-200.0,0.00017856,2]
[401190977,1768032648999,-200.0,0.00017856,2]
[401190978,1768032649009,-18372.0,0.00017857,2]
[401190979,1768032649020,-150.0,0.00017862,2]
[401190980,1768032649031,-150.0,0.00017867,2]
[401190981,1768032649040,-255.68743637,0.00017873,2]
[401190982,1768032649051,-263.75602621,0.00017873,2]
[401190983,1768032649061,-178.71892515,0.00017873,2]
[401190984,1768032649073,-229.31905987,0.00017873,2]
[401190985,1768032649083,-150.0,0.00017877,2]
[401190986,1768032649094,-150.0,0.00017887,2]
[401190987,1768032649105,-255.68743637,0.00017891,2]
[401190988,1768032649118,-263.75602621,0.00017891,2]
[401190989,1768032649129,-178.71892515,0.00017891,2]
[401190990,1768032649140,-229.31905987,0.00017891,2]
[401190991,1768032649150,-25000.0,0.00017891,3]
[401190992,1768032649161,-150.0,0.00017896,2]
[401190993,1768032649172,-10000.0,0.000179,2]
[401190994,1768032649183,-25000.0,0.000179,3]
[401190995,1768032649193,-1009.14113428,0.000179,2]
[401190996,1768032649203,-1000.0,0.000179,2]
[401190997,1768032649213,-998.12031967,0.000179,2]
[401190998,1768032649223,-998.12031967,0.000179,2]
[401190999,1768032649235,-998.12031967,0.000179,2]
[401191000,1768032649245,-998.12031967,0.000179,2]
[401191001,1768032649255,-998.12031967,0.000179,2]
[401191002,1768032649265,-998.12031967,0.000179,2]
[401191003,1768032649275,-998.12031967,0.000179,2]
[401191004,1768032649285,-998.12031967,0.000179,2]
[401191005,1768032649295,-998.12031967,0.000179,2]
[401191006,1768032649305,-998.12031967,0.000179,2]
[401191007,1768032649316,-998.12031967,0.000179,2]
[401191008,1768032649327,-998.12031967,0.000179,2]
[401191009,1768032649337,-998.12031967,0.000179,2]
[401191010,1768032649347,-998.12031967,0.000179,2]
[401191011,1768032649357,-998.12031967,0.000179,2]
[401191012,1768032649368,-998.12031967,0.000179,2]
[401191013,1768032649379,-998.12031967,0.000179,2]
[401191014,1768032649390,-591.38897096,0.000179,2]
[401191015,1768032649399,-2020.57272545,0.000179,2]
[401191016,1768032649410,-179.38897292,0.000179,3]
[401191017,1768032649421,-2175.34711646,0.000179,2]
[401191018,1768032649437,-167.41437802,0.000179,2]
[401191019,1768032649447,-255.68743637,0.00017909,2]
[401191020,1768032649459,-263.75602621,0.00017909,2]
[401191021,1768032649469,-178.71892515,0.00017909,2]
[401191022,1768032649603,-229.31905987,0.00017909,2]
[401191023,1768032649613,-18919.9867794,0.00017917,2]
[401191024,1768032649622,-150.0,0.00017918,2]
[401191025,1768032649632,-561.2,0.00017926,2]
[401191026,1768032649642,-255.68743637,0.00017927,2]
[401191027,1768032649651,-263.75602621,0.00017927,2]
[401191028,1768032649661,-178.71892515,0.00017927,2]
[401191029,1768032649671,-229.31905987,0.00017927,2]
[401191030,1768032649680,-150.0,0.00017931,2]
[401191031,1768032649689,-150.0,0.00017933,2]
[401191032,1768032649699,-255.68743637,0.00017945,2]
[401191033,1768032649710,-263.75602621,0.00017945,2]
[401191034,1768032649719,-178.71892515,0.00017945,2]
[401191035,1768032649730,-229.31905987,0.00017945,2]
[401191036,1768032649739,-181.00537575,0.00017946,2]
[401191037,1768032649750,-1000.0,0.00017953,2]
[401191038,1768032649760,-274.0,0.00017958,2]
[401191039,1768032649770,-150.0,0.00017959,2]
[401191040,1768032649779,-168.0,0.00017963,2]
[401191041,1768032649789,-255.68743637,0.00017964,2]
[401191042,1768032649799,-263.75602621,0.00017964,2]
[401191043,1768032649809,-178.71892515,0.00017964,2]
[401191044,1768032649819,-229.31905987,0.00017964,2]
[401191045,1768032649829,-150.0,0.00017965,2]
[401191046,1768032649839,-303.0,0.00017973,2]
[401191047,1768032649848,-500.0,0.00017973,2]
[401191048,1768032649858,-500.64146005,0.00017973,2]
[401191049,1768032649868,-281.91943671,0.00017973,2]
[401191050,1768032649877,-500.0,0.00017973,2]
[401191051,1768032649887,-500.0,0.00017973,2]
[401191052,1768032649897,-500.0,0.00017973,2]
[401191053,1768032649907,-500.0,0.00017973,2]
[401191054,1768032649917,-500.0,0.00017973,2]
[401191055,1768032649927,-191.10319937,0.00017973,2]
[401191056,1768032649937,-500.0,0.00017973,2]
[401191057,1768032649947,-500.0,0.00017973,2]
[401191058,1768032649957,-500.0,0.00017973,2]
[401191059,1768032649966,-500.0,0.00017973,2]
[401191060,1768032649975,-500.0,0.00017973,2]
[401191061,1768032649985,-500.0,0.00017973,2]
[401191062,1768032649995,-500.0,0.00017973,2]
[401191063,1768032650005,-500.0,0.00017973,2]
[401191064,1768032650014,-500.0,0.00017973,2]
[401191065,1768032650024,-150.34167383,0.00017973,2]
[401191066,1768032650034,-610.19552731,0.00017973,2]
[401191067,1768032650044,-260.97339631,0.00017973,2]
[401191068,1768032650054,-300.29995774,0.00017973,2]
[401191069,1768032650064,-433.9562915,0.00017973,2]
[401191070,1768032650074,-500.0,0.00017973,2]
[401191071,1768032650083,-500.0,0.00017973,2]
[401191072,1768032650093,-641.77796518,0.00017973,2]
[401191073,1768032650103,-500.0,0.00017973,2]
[401191074,1768032650113,-501.2767774,0.00017973,2]
[401191075,1768032650123,-500.0,0.00017973,2]
[401191076,1768032650133,-500.0,0.00017973,2]
[401191077,1768032650142,-500.0,0.00017973,2]
[401191078,1768032650152,-500.0,0.00017973,2]
[401191079,1768032650162,-500.0,0.00017973,2]
[401191080,1768032650172,-500.0,0.00017973,2]
[401191081,1768032650181,-500.0,0.00017973,2]
[401191082,1768032650190,-500.0,0.00017973,2]
[401191083,1768032650200,-500.85151996,0.00017973,2]
[401191084,1768032650211,-500.0,0.00017973,2]
[401191085,1768032650223,-500.0,0.00017973,2]
[401191086,1768032650235,-500.0,0.00017973,2]
[401191087,1768032650245,-500.0,0.00017973,2]
[401191088,1768032650255,-571.47009533,0.00017973,2]
[401191089,1768032650265,-500.0,0.00017973,2]
[401191090,1768032650275,-500.0,0.00017973,2]
[401191091,1768032650286,-500.0,0.00017973,2]
[401191092,1768032650295,-588.0072514,0.00017973,2]
[401191093,1768032650305,-500.0,0.00017973,2]
[401191094,1768032650317,-150.0,0.00017973,2]
[401191095,1768032650329,-150.0,0.00017973,2]
[401191096,1768032650339,-527.72,0.0001798,2]
[401191097,1768032650349,-500.0,0.0001798,2]
[401191098,1768032650358,-500.0,0.0001798,2]
[401191099,1768032650367,-500.0,0.0001798,2]
[401191100,1768032650377,-500.0,0.0001798,2]
[401191101,1768032650386,-500.0,0.0001798,2]
[401191102,1768032650396,-255.68743637,0.00017982,2]
[401191103,1768032650406,-263.75602621,0.00017982,2]
[401191104,1768032650415,-178.71892515,0.00017982,2]
[401191105,1768032650426,-229.31905987,0.00017982,2]
[401191106,1768032650436,-500.0,0.00017982,2]
[401191107,1768032650445,-766.11378665,0.0001799,2]
[401191108,1768032650455,-766.11378665,0.0001799,2]
[401191109,1768032650465,-766.11378665,0.0001799,2]
[401191110,1768032650475,-276.645,0.00017999,2]
[401191111,1768032650485,-300.0,0.00017999,2]
[401191112,1768032650495,-300.0,0.00017999,2]
[401191113,1768032650504,-160.88728799,0.00017999,2]
[401191114,1768032650514,-300.0,0.00017999,2]
[401191115,1768032650524,-244.63188995,0.00017999,2]
[401191116,1768032650535,-666.0,0.00017999,2]
[401191117,1768032650545,-500.0,0.00017999,2]
[401191118,1768032650555,-500.0,0.00017999,2]
[401191119,1768032650565,-500.0,0.00017999,2]
[401191120,1768032650575,-500.0,0.00017999,2]
[401191121,1768032650585,-500.0,0.00017999,2]
[401191122,1768032650595,-500.0,0.00017999,2]
[401191123,1768032650604,-500.0,0.00017999,2]
[401191124,1768032650614,-359.11221161,0.00017999,2]
[401191125,1768032650624,-300.0,0.00017999,2]
[401191126,1768032650634,-671.12852877,0.00017999,2]
[401191127,1768032650644,-255.68743637,0.00018,2]
[401191128,1768032650653,-196.21798024,0.00018,2]
[401191129,1768032650663,-263.75602621,0.00018,2]
[401191130,1768032650673,-223.10788253,0.00018,2]
[401191131,1768032650683,-178.71892515,0.00018,2]
[401191132,1768032650693,-156.68286018,0.00018,2]
[401191133,1768032650703,-298.52493072,0.00018,2]
[401191134,1768032650712,-178.17676299,0.00018,2]
[401191135,1768032650722,-216.79771002,0.00018,2]
[401191136,1768032650731,-229.31905987,0.00018,2]
[401191137,1768032650741,-247.12115074,0.00018,2]
[401191138,1768032650751,-194.08427451,0.00018,2]
[401191139,1768032650761,-535928.80223555,0.00018,2]
[401191140,1768032650771,-195654.92864946,0.00018,2]
[401191141,1768032650780,-1106434.03077533,0.00018,2]
[401191142,1768032651388,-857.63186119,0.00018,2]
[401191143,1768032651400,-293.90005676,0.00018,2]
[401191144,1768032651414,-453.715,0.00018,2]
[401191145,1768032651425,-630.470007,0.00018,2]
[401191146,1768032651624,-566.0,0.00017805,2]
[401191147,1768032651635,-3796.20891755,0.00018,2]
[401191148,1768032651647,-907.34473826,0.00018,2]
[401191149,1768032651659,-877.07771091,0.00018,2]
[401191150,1768032651672,-665.93763156,0.00018,2]
[401191151,1768032651683,-490.15265879,0.00018,2]
[401191156,1768032925950,1231.9,0.000202,30]
[401191157,1768033164264,-1000.0,0.00015392,2]
[401191158,1768033164293,-250.0,0.00015392,2]
[401191159,1768033164322,-165.99817722,0.00015392,2]
[401191160,1768033164352,-162.58813593,0.00015848,2]
[401191161,1768033164383,-162.58813591,0.00015849,2]
[401191162,1768033164413,-162.58813591,0.00015849,2]
[401191163,1768033164446,-2500.0,0.0001585,2]
[401191164,1768033164475,-160.95417804,0.00015885,2]
[401191165,1768033164504,-218.99849473,0.00015887,2]
[401191166,1768033164534,-132.57948452,0.00015897,2]
[401191167,1768033164600,-167.42051548,0.00015897,2]
[401191168,1768033164630,-300.0,0.00015897,2]
[401191169,1768033164659,-170.32473985,0.00015898,2]
[401191170,1768033164691,-1788.13698323,0.00015898,2]
[401191171,1768033164721,-809.81573519,0.00015898,2]
[401191172,1768033164750,-1000.0,0.00015934,2]
[401191173,1768033164778,-270.0,0.00015948,2]
[401191174,1768033164807,-300.0,0.00015948,2]
[401191175,1768033164852,-1200.0,0.00015948,2]
[401191176,1768033164882,-300.0,0.00015948,2]
[401191177,1768033165410,-300.0,0.00015949,5]
[401191178,1768033165460,-300.0,0.00015949,5]
[401191179,1768033165506,-7000.01,0.00015949,5]
[401191180,1768033165522,-4472.79096157,0.00015949,5]
[401191181,1768033165533,-5527.21903843,0.0001595,2]
[401191182,1768033165552,-10000.01,0.0001595,2]
[401191183,1768033165580,-10000.01,0.0001595,2]
[401191184,1768033165612,-10000.01,0.0001595,2]
[401191185,1768033165640,-10000.01,0.0001595,2]
[401191186,1768033165658,-10000.01,0.0001595,2]
[401191187,1768033165686,-10000.01,0.0001595,2]
[401191188,1768033165705,-10000.01,0.0001595,2]
[401191189,1768033165732,-10000.01,0.0001595,2]
[401191190,1768033165745,-10000.01,0.0001595,2]
[401191191,1768033165762,-10000.01,0.0001595,2]
[401191192,1768033165819,-10000.01,0.0001595,2]
[401191193,1768033175941,-10000.01,0.0001595,2]
[401191194,1768033176066,-10000.01,0.0001595,2]
[401191195,1768033176174,-10000.01,0.0001595,2]
[401191196,1768033176304,-10000.01,0.0001595,2]
[401191197,1768033176437,-10000.01,0.0001595,2]
[401191198,1768033176571,-10000.01,0.0001595,2]
[401191199,1768033176671,-10000.01,0.0001595,2]
[401191201,1768033558799,-164.39,0.00012062,2]
[401191202,1768033558821,-300.0,0.00013269,2]
[401191203,1768033558843,-212.06175971,0.00013269,2]
[401191204,1768033558866,-166.66,0.00014523,2]
[401191205,1768033558889,-166.66,0.00014829,2]
[401191207,1768033594864,-166.66,0.00015134,2]
[401191208,1768033594886,-500.0,0.00015173,2]
[401191209,1768033594908,-450.0,0.000154,2]
[401191210,1768033594931,-166.66,0.0001544,2]
[401191211,1768033594954,-499.528,0.00015631,2]
[401191212,1768033594977,-226.304,0.00015631,2]
[401191213,1768033595000,-150.0,0.00015675,2]
[401191214,1768033595022,-150.0,0.00015675,2]
[401191215,1768033595044,-150.0,0.00015675,2]
[401191216,1768033595066,-150.0,0.00015675,2]
[401191217,1768033595089,-150.0,0.00015675,2]
[401191218,1768033595111,-150.0,0.00015675,2]
[401191219,1768033595133,-150.0,0.00015675,2]
[401191220,1768033595155,-150.0,0.00015675,2]
[401191221,1768033595177,-500.0,0.00015721,2]
[401191222,1768033595198,-150.0,0.0001573,2]
[401191223,1768033595220,-150.0,0.0001573,2]
[401191224,1768033595244,-150.0,0.0001573,2]
[401191225,1768033595265,-150.0,0.0001573,2]
[401191226,1768033595287,-150.0,0.0001573,2]
[401191227,1768033595309,-150.0,0.0001573,2]
[401191228,1768033595330,-150.0,0.0001573,2]
[401191229,1768033595355,-166.66,0.00015746,2]
[401191230,1768033595379,-150.0,0.00015785,2]
[401191231,1768033595401,-150.0,0.00015785,2]
[401191232,1768033595424,-150.0,0.00015785,2]
[401191233,1768033595447,-150.0,0.00015785,2]
[401191234,1768033595469,-150.0,0.00015785,2]
[401191235,1768033595492,-298.0178051,0.00015839,2]
[401191236,1768033595515,-250.0,0.00015839,2]
[401191237,1768033595537,-150.0,0.00015839,2]
[401191238,1768033595560,-150.0,0.00015839,2]
[401191239,1768033595584,-216.31193931,0.00015839,2]
[401191240,1768033595609,-300.0,0.00015848,2]
[401191241,1768033595631,-1200.0,0.00015848,2]
[401191242,1768033595654,-300.0,0.00015848,2]
[401191243,1768033595676,-300.0,0.00015849,2]
[401191244,1768033595697,-236.6149,0.00015849,2]
[401191245,1768033595719,-4109.4312,0.00015849,2]
[401191246,1768033595740,-33580.3823,0.0001585,2]
[401191247,1768033595762,-965.1888,0.0001585,2]
[401191248,1768033595785,-1068.24105559,0.0001585,2]
[401191254,1768033662866,-150.0,0.00015675,2]
[401191255,1768033662898,-200.0,0.00015785,2]
[401191256,1768033662928,-1819.0090701,0.00015841,2]
[401191257,1768033662959,-958.87394441,0.0001585,2]
[401191258,1768033662989,-1056.48167545,0.00015875,2]
[401191259,1768033663113,-1631.28062008,0.00015875,2]
[401191260,1768033663156,-170.94343498,0.00015875,2]
[401191261,1768033663186,-200.0,0.00015894,2]
[401191262,1768033663217,-150.0,0.00015894,2]
[401191263,1768033663246,-354.53949062,0.000159,2]
[401191264,1768033663277,-354.53949062,0.000159,2]
[401191265,1768033663307,-354.53949062,0.000159,2]
[401191266,1768033663338,-354.53949062,0.000159,2]
[401191267,1768033663366,-354.53949062,0.000159,2]
[401191268,1768033663395,-354.53949062,0.000159,2]
[401191269,1768033663424,-614.41,0.0001594,3]
[401191270,1768033663456,-300.0,0.00015948,2]
[401191271,1768033663486,-150.0,0.00015948,2]
[401191272,1768033663517,-200.0,0.00015949,2]
[401191273,1768033663548,-284.0,0.00015949,2]
[401191274,1768033663578,-189.0,0.00015949,2]
[401191275,1768033663617,-167.85309461,0.00015949,2]
[401191276,1768033663711,-893.12305338,0.00015949,2]
[401191277,1768033663747,-1060.97614799,0.00015949,2]
[401191278,1768033663782,-1060.97614799,0.00015949,2]
[401191279,1768033663818,-1060.97614799,0.00015949,2]
[401191280,1768033663854,-786.93085731,0.00015949,2]
[401191281,1768033664849,-274.04529068,0.00015949,2]
[401191282,1768033664884,-1060.97614799,0.00015949,2]
[401191283,1768033664920,-1060.97614799,0.00015949,2]
[401191284,1768033664954,-1060.97614799,0.00015949,2]
[401191285,1768033664989,-1060.97614799,0.00015949,2]
[401191286,1768033665109,-1060.97614799,0.00015949,2]
[401191287,1768033665144,-1060.97614799,0.00015949,2]
[401191288,1768033665179,-1060.97614799,0.00015949,2]
[401191289,1768033665216,-1060.97614799,0.00015949,2]
[401191290,1768033665253,-451.22466809,0.00015949,2]
[401191291,1768033665381,-609.7514799,0.00015949,2]
[401191292,1768033665417,-1060.97614799,0.00015949,2]
[401191293,1768033665453,-1060.97614799,0.00015949,2]
[401191294,1768033665488,-1060.97614799,0.00015949,2]
[401191295,1768033665523,-1060.97614799,0.00015949,2]
[401191296,1768033665604,-1060.97614799,0.00015949,2]
[401191297,1768033665641,-1060.97614799,0.00015949,2]
[401191298,1768033665675,-1060.97614799,0.00015949,2]
[401191299,1768033665709,-1060.97614799,0.00015949,2]
[401191300,1768033665743,-451.22466809,0.00015949,2]
[401191301,1768033665838,-609.7514799,0.00015949,2]
[401191302,1768033665872,-1060.97614799,0.00015949,2]
[401191303,1768033665907,-1060.97614799,0.00015949,2]
[401191304,1768033665941,-1060.97614799,0.00015949,2]
[401191305,1768033665976,-1060.97614799,0.00015949,2]
[401191306,1768033666038,-1060.97614799,0.00015949,2]
[401191307,1768033666071,-1060.97614799,0.00015949,2]
[401191308,1768033666104,-1060.97614799,0.00015949,2]
[401191309,1768033666138,-1060.97614799,0.00015949,2]
[401191310,1768033666175,-451.22466809,0.00015949,2]
[401191311,1768033666219,-609.7514799,0.00015949,2]
[401191312,1768033666255,-1060.97614799,0.00015949,2]
[401191313,1768033666291,-1060.97614799,0.00015949,2]
[401191314,1768033666326,-1060.97614799,0.00015949,2]
[401191315,1768033666362,-1060.97614799,0.00015949,2]
[401191316,1768033666406,-1060.97614799,0.00015949,2]
[401191317,1768033666438,-1060.97614799,0.00015949,2]
[401191318,1768033666472,-1060.97614799,0.00015949,2]
[401191319,1768033666508,-1060.97614799,0.00015949,2]
[401191320,1768033666544,-451.22466809,0.00015949,2]
[401191321,1768033666587,-609.7514799,0.00015949,2]
[401191322,1768033666624,-1060.97614799,0.00015949,2]
[401191323,1768033666659,-1060.97614799,0.00015949,2]
[401191324,1768033666696,-1060.97614799,0.00015949,2]
[401191325,1768033666731,-1060.97614799,0.00015949,2]
[401191326,1768033666816,-1060.97614799,0.00015949,2]
[401191327,1768033666852,-1060.97614799,0.00015949,2]
[401191328,1768033666888,-1048.03741447,0.00015949,2]
[401191329,1768033666923,-1048.03741447,0.00015949,2]
[401191330,1768033666959,-515.91833569,0.00015949,2]
[401191331,1768033667006,-532.11907878,0.00015949,2]
[401191332,1768033667042,-1048.03741447,0.00015949,2]
[401191333,1768033667079,-1048.03741447,0.00015949,2]
[401191334,1768033667116,-1048.03741447,0.00015949,2]
[401191335,1768033667151,-1048.03741447,0.00015949,2]
[401191336,1768033667205,-1048.03741447,0.00015949,2]
[401191337,1768033667242,-1048.03741447,0.00015949,2]
[401191338,1768033667280,-1048.03741447,0.00015949,2]
[401191339,1768033667319,-1048.03741447,0.00015949,2]
[401191340,1768033667356,-567.67326977,0.00015949,2]
[401191341,1768033669195,-480.3641447,0.00015949,2]
[401191342,1768033669206,-34.62406818,0.00015949,2]
[401191343,1768033669231,-1013.41334629,0.00015949,2]
[401191344,1768033669242,-34.62406818,0.00015949,2]
[401191345,1768033669257,-551.47252668,0.00015949,2]
[401191346,1768033669272,-461.94081961,0.00015949,2]
[401191347,1768033669282,-586.09659486,0.00015949,2]
[401191348,1768033669301,-461.94081961,0.00015949,2]
[401191349,1768033669312,-586.09659486,0.00015949,2]
[401191350,1768033669327,-461.94081961,0.00015949,2]
[401191351,1768033669336,-586.09659486,0.00015949,2]
[401191352,1768033669355,-461.94081961,0.00015949,2]
[401191353,1768033669365,-586.09659486,0.00015949,2]
[401191354,1768033669389,-461.94081961,0.00015949,2]
[401191355,1768033669406,-586.09659486,0.00015949,2]
[401191356,1768033673080,-461.94081961,0.00015949,2]
[401191357,1768033673119,-1048.03741447,0.00015949,2]
[401191358,1768033673158,-1048.03741447,0.00015949,2]
[401191359,1768033673196,-1048.03741447,0.00015949,2]
[401191360,1768033673236,-1048.03741447,0.00015949,2]
[401191361,1768033673343,-1048.03741447,0.00015949,2]
[401191362,1768033673381,-1048.03741447,0.00015949,2]
[401191363,1768033673419,-1048.03741447,0.00015949,2]
[401191364,1768033673458,-1048.03741447,0.00015949,2]
[401191365,1768033673488,-500.0,0.00015949,2]
[401191366,1768033673521,-115.71068424,0.00015949,2]
[401191367,1768033673610,-384.28931576,0.00015949,2]
[401191368,1768033673642,-506.03793393,0.00015949,2]
[401191369,1768033673674,-432.24933858,0.00015949,2]
[401191370,1768033673710,-1026.7491545,0.00015949,2]
[401191371,1768033674036,-1026.7491545,0.00015949,2]
[401191372,1768033674074,-1026.7491545,0.00015949,2]
[401191373,1768033674111,-167.61274196,0.00015949,2]
[401191374,1768033674287,-859.13641254,0.00015949,2]
[401191375,1768033674323,-1026.7491545,0.00015949,2]
[401191376,1768033674360,-1026.7491545,0.00015949,2]
[401191377,1768033674397,-1026.7491545,0.00015949,2]
[401191378,1768033674435,-1026.7491545,0.00015949,2]
[401191379,1768033674571,-1026.7491545,0.00015949,2]
[401191380,1768033674610,-1026.7491545,0.00015949,2]
[401191381,1768033674647,-1026.7491545,0.00015949,2]
[401191382,1768033674682,-1026.7491545,0.00015949,2]
[401191383,1768033674716,-759.2676095,0.00015949,2]
[401191384,1768033674779,-267.481545,0.00015949,2]
[401191385,1768033674814,-1026.7491545,0.00015949,2]
[401191386,1768033674848,-1026.7491545,0.00015949,2]
[401191387,1768033674884,-1026.74915443,0.00015949,2]
[401191388,1768033674914,-283.0,0.0001595,2]
[401191389,1768033674944,-518.7,0.0001595,2]
[401191390,1768033675926,-352.3404115,0.00015875,2]
[401191391,1768033675936,-155.708743,0.0001595,2]
[401191392,1768033675951,-1026.74915443,0.0001595,2]
[401191393,1768033675969,-283.0,0.0001595,2]
[401191394,1768033675983,-518.7,0.0001595,2]
[401191395,1768033675998,-1701.15198314,0.0001595,2]
[401191396,1768033676031,-10000.01,0.0001595,2]
[401191397,1768033676047,-10000.01,0.0001595,2]
[401191398,1768033676061,-10000.01,0.0001595,2]
[401191416,1768033831484,-158.12267732,0.00015741,2]
[401191417,1768033831494,-281.0,0.00015741,2]
[401191418,1768033831504,-234.89360768,0.00015741,2]
[401191419,1768033831513,-300.0,0.00015749,2]
[401191420,1768033831522,-1200.0,0.00015749,2]
[401191421,1768033831531,-300.0,0.00015749,2]
[401191422,1768033831540,-300.0,0.00015749,2]
[401191423,1768033831553,-3019.68476187,0.0001575,2]
[401191424,1768033831563,-346.78075065,0.0001575,2]
[401191425,1768033831574,-397.33497739,0.0001575,2]
[401191426,1768033831602,-1223.09021573,0.0001575,2]
[401191427,1768033831614,-8154.86842462,0.0001575,2]
[401191428,1768033831624,-35329.72752014,0.0001575,2]
[401191476,1768033832009,-681.30855541,0.0001575,2]
[401191478,1768033832021,-631.85540748,0.0001575,2]
[401191493,1768033837691,-1341.69773257,0.0001575,2]
[401191494,1768033837703,-1260.0,0.0001575,2]
[401191495,1768033837715,-1118.10003,0.0001575,2]
[401191496,1768033837727,-8460.0,0.0001575,2]
[401191497,1768033837739,-55525.31113682,0.0001575,2]
[401191498,1768033837750,-17401.00640134,0.0001575,2]
[401191499,1768033837761,-293286.41941135,0.0001575,2]
[401191500,1768033837826,-10860.85842418,0.0001575,2]
[401191501,1768033837837,-5210.06408339,0.0001575,2]
[401191599,1768033840465,-90.07763831,0.0001575,2]
[401191600,1768033840478,-1392.10538075,0.0001575,2]
[401191601,1768033840489,-554269.709148,0.0001575,2]
[401191602,1768033840499,-234.89360766,0.0001583,2]
[401191603,1768033840508,-14189.9900846,0.00015841,2]
[401191604,1768033840518,-2500.0,0.0001585,2]
[401191605,1768033840527,-4460.51539027,0.00015875,2]
[401191606,1768033840536,-205.13212192,0.00015875,2]
[401191607,1768033840545,-1000.0,0.00015918,2]
[401191608,1768033840555,-234.89360766,0.00015918,2]
[401191609,1768033840564,-1200.0,0.00015949,2]
[401191610,1768033840574,-138619.2919949,0.00015949,2]
[401191611,1768033840583,-200.0,0.0001595,2]
[401191612,1768033840593,-150.0,0.00015981,2]
[401191613,1768033840602,-150.0,0.00015981,2]
[401191614,1768033840611,-150.0,0.00015981,2]
[401191615,1768033840621,-233.86226435,0.00015981,2]
[401191616,1768033840630,-150.0,0.00015981,2]
[401191617,1768033840639,-150.0,0.00015981,2]
[401191618,1768033840649,-150.0,0.00015981,2]
[401191619,1768033840659,-150.0,0.00015981,2]
[401191620,1768033840671,-150.7951792,0.00015981,2]
[401191621,1768033840680,-766.11378665,0.0001599,2]
[401191622,1768033840689,-1649.47,0.00016,2]
[401191623,1768033840710,-330840.77672933,0.00016,4]
[401191624,1768033840720,-5299.4771901,0.00016018,2]